Cogmind - Beta 16 @@@ ROGUE MODE // 2025.11.17 @ 03:33:21 Player: War__Prophet Result: Destroyed by S-27 Virus with Autogun Performance ------------- Evolutions (4) 2000 Regions Visited (8) 1600 Robots Destroyed (49) 245 Value Destroyed (2048) 2048 Prototype IDs (2) 40 Alien Tech Used (0) 0 Bonus (794) 794 TOTAL SCORE: 6727 Bonus ------- Follower Combat Kills 94 Entered Garrisons 200 Entered DSFs 500 Cogmind --------- Core Integrity 0/850 Matter 162/300 Energy 20/100 System Corruption 1% Temperature Cool (0) Movement Core (50) Location -6/Garrison Parts ------- > --- POWER (2) -------- (None) > --- PROPULSION (4) --- (None) > --- UTILITY (3) ------ (None) > --- WEAPON (6) ------- (None) > --- INVENTORY (5) ---- (None) Peak State ------------ > --- POWER ------------ Micro Nuclear Core Micro Nuclear Core > --- PROPULSION ------- Light Treads Light Treads Armored Treads Armored Treads > --- UTILITY ---------- Medium Storage Unit Hardened Heavy Armor Plating > --- WEAPON ----------- Gauss Rifle Gauss Rifle Greatsword Greatsword > --- INVENTORY -------- Carbon-fiber Leg Carbon-fiber Leg Cooling System High-capacity Storage Unit Weapon Cycler Graphene Brace Relay Coupler [Grunt] Relay Coupler [Brawler] Relay Coupler [Hunter] [Rating: 52] Favorites ----------- Power Heavy Ion Engine Engine Heavy Ion Engine Power Core Micro Nuclear Core Propulsion Armored Treads Treads Armored Treads Wheel Wheel Flight Unit VTOL Module Utility Medium Storage Unit Device Improved Sensor Array Storage Medium Storage Unit Processor Improved Signal Interpreter Hackware Authchip [R/Combat] Protection Hardened Heavy Armor Plating Weapon Improved EM Shotgun Energy Gun Improved EM Shotgun Energy Cannon Improved EM Pulse Cannon Ballistic Gun Gauss Rifle Slashing Weapon Greatsword Build | -11 -10 -10 -9 -8 -7 -7 -6 -6 ------- Run | Yrd Mat Min Mat Mat Fac DSF Fac Gar Slots Evolved 8 | . . . 2 2 2 . 2 . Power 1 | . . . . . 1 . . . Propulsion 2 | . . . 2 . . . . . Utility 1 | . . . . . 1 . . . Weapon 4 | . . . . 2 . . 2 . Parts Attached 66 | 7 . 1 14 15 . 16 2 11 Power 10 | 1 . 1 2 3 . 2 . 1 Engine 7 | 1 . . 2 3 . 1 . . Core 3 | . . 1 . . . 1 . 1 Reactor . | . . . . . . . . . Propulsion 15 | 2 . . 8 1 . 2 . 2 Treads 9 | . . . 4 1 . 2 . 2 Leg . | . . . . . . . . . Wheel 2 | 2 . . . . . . . . Hover . | . . . . . . . . . Flight 4 | . . . 4 . . . . . Utility 18 | 1 . . 1 7 . 2 1 6 Device 5 | . . . . 4 . . 1 . Storage 3 | 1 . . . 1 . 1 . . Processor 2 | . . . . 1 . . . 1 Hackware 3 | . . . . . . . . 3 Protection 5 | . . . 1 1 . 1 . 2 Artifact . | . . . . . . . . . Weapon 23 | 3 . . 3 4 . 10 1 2 Energy Gun 9 | 2 . . 3 4 . . . . Energy Cannon 4 | . . . . . . 4 . . Ballistic Gun 3 | 1 . . . . . . . 2 Ballistic Cannon . | . . . . . . . . . Launcher . | . . . . . . . . . Special Weapon . | . . . . . . . . . Impact Weapon . | . . . . . . . . . Slashing Weapon 7 | . . . . . . 6 1 . Piercing Weapon . | . . . . . . . . . Special Melee Weapon . | . . . . . . . . . Unidentified Prototypes 2 | . . . 1 1 . . . . Corrupted Parts 3 | . . . . 1 . 2 . . System Corruption 8 | . . . . 2 . 6 . . Parts Lost 20 | . . 1 1 4 . 5 . 9 Power 3 | . . 1 1 . . 1 . . Propulsion 4 | . . . . 1 . 1 . 2 Utility 7 | . . . . 2 . 1 . 4 Weapon 6 | . . . . 1 . 2 . 3 Highest Loss Streak 4 | . . 1 1 4 . 2 . 3 To Critical Strikes . | . . . . . . . . . Average Backups 7 | . 4 7 4 5 18 14 6 6 Power 1 | . 1 1 . 1 6 3 . . Propulsion . | . 2 4 . . . . . 1 Utility 4 | . 1 2 2 4 7 6 6 5 Weapon . | . . . 2 . 5 3 . . Tool/Special . | . . . . . . . . . Unused Backups 18 | . . . 2 . . 7 . 9 Power 4 | . . . . . . 4 . . Propulsion 2 | . . . . . . . . 2 Utility 9 | . . . . . . 2 . 7 Weapon 3 | . . . 2 . . 1 . . Tool/Special . | . . . . . . . . . Average Slot Usage (%) 76 | . 71 69 71 91 69 73 62 66 Engine 6 | . 14 3 7 8 7 9 6 3 Core 3 | . . 8 2 . . 2 6 7 Treads 23 | . . . 26 32 23 26 20 21 Wheel 3 | . 28 28 1 . . . . . Flight 1 | . . . 12 . . . . . Device 2 | . . . . 6 . . . . Storage 5 | . 14 14 3 1 7 7 6 5 Processor 1 | . . . . 1 7 . . 1 Protection 4 | . . . . 6 . 3 4 4 Energy Gun 12 | . . . 15 33 23 . . . Ballistic Gun 3 | . 14 14 1 . . . . 5 Slashing Weapon 6 | . . . . . . 13 18 13 Peak Build Rating 52 | 5 6 8 20 31 31 50 51 52 Average Rating 31 | 3 5 7 16 29 31 40 49 42 On Entrance 21 | . 5 6 8 20 31 31 44 51 Avg Prop Armor Cover (%) 12 | . . . . 12 . . . . Naked Turns 24 | . . . 2 . . . . 22 Heaviest Build 84 | 11 11 11 17 57 57 84 59 60 Greatest Support 80 | 26 26 26 80 80 60 80 60 80 Greatest Overweight (x) 1 | . . . 1 . . 1 . 1 Average Overweight (x) . | . . . . . . . . . Largest Inventory Capacity 20 | 8 8 8 8 20 20 20 10 10 Average Capacity 9 | 5 8 8 6 7 20 18 10 9 Most Carried 20 | 1 7 7 8 19 19 20 9 10 Average Carried 8 | . 5 7 4 6 19 15 7 7 Final Capacity 20 | 8 8 8 5 20 20 10 10 5 Final Carried 19 | 1 7 7 4 19 19 9 7 . Class Distribution -------------------- 37% | Scavenger-Mutant 24% | Tank 22% | Mutant 10% | Gunner Dominant Class ---------------- Mutant | -10/Materials Mutant | -10/Mines Mutant | -9/Materials Tank | -8/Materials Gunner | -7/Factory Scavenger-Mutant | -7/DSF Scavenger-Mutant | -6/Factory Scavenger-Mutant | -6/Garrison Resources | -11 -10 -10 -9 -8 -7 -7 -6 -6 ----------- Run | Yrd Mat Min Mat Mat Fac DSF Fac Gar Matter Collected 943 | 233 . 86 106 222 . 156 . 140 Remotely . | . . . . . . . . . Salvage Created 2255 | . . 79 142 971 . 488 . 575 Parts 132 | . . 4 10 62 . 27 . 29 Haulers Intercepted 1 | . . . . 1 . . . . Recyclers Shooed . | . . . . . . . . . Parts Field Recycled . | . . . . . . . . . Retrieved Matter . | . . . . . . . . . Parts Self-Destructed . | . . . . . . . . . Prevented . | . . . . . . . . . Parts Restored . | . . . . . . . . . Kills | -11 -10 -10 -9 -8 -7 -7 -6 -6 ------- Run | Yrd Mat Min Mat Mat Fac DSF Fac Gar Combat Hostiles Destroyed 47 | . . 2 6 17 . 10 . 12 Melee 14 | . . . 2 . . 7 . 5 Guns 30 | . . 2 4 17 . . . 7 Cannons 2 | . . . . . . 2 . . AOE 1 | . . . . . . 1 . . Classes Destroyed 11 | . . 1 2 5 . 2 . 1 Hauler 1 | . . . . 1 . . . . Recycler 1 | . . . . 1 . . . . Swarmer 17 | . . . 4 4 . 4 . 5 Grunt 17 | . . 2 1 7 . 3 . 4 Duelist 1 | . . . 1 . . . . . Sentry 5 | . . . . 4 . . . 1 Demolisher 1 | . . . . . . . . 1 Specialist 1 | . . . . . . 1 . . Hunter 2 | . . . . 1 . . . 1 Programmer 1 | . . . . . . 1 . . Heavy 2 | . . . . 1 . 1 . . Best Kill Streak 4 | . . 1 3 4 . 4 . 4 Combat Bots Only 4 | . . 1 3 4 . 4 . 4 Max Kills in Single Turn 2 | . . 1 1 2 . 1 . 2 Gunslinging 1 | . . . . 1 . . . . Exploded 1 | . . . . . . 1 . . Melee 1 | . . . 1 . . 1 . 1 Uniques/NPCs Destroyed . | . . . . . . . . . Combat | -11 -10 -10 -9 -8 -7 -7 -6 -6 -------- Run | Yrd Mat Min Mat Mat Fac DSF Fac Gar Hostile Shots Fired 476 | . . 30 112 47 . 117 . 170 Missed 127 | . . 12 36 9 . 31 . 39 Hits 349 | . . 18 76 38 . 86 . 131 Melee 1 | . . . 1 . . . . . Projectile 348 | . . 18 75 38 . 86 . 131 AOE 8 | . . . . . . . . 8 Critical Strikes 11 | . . . . 4 . 6 . 1 Damage Taken 5594 | . . 223 642 825 . 1568 . 2336 Core 1238 | . . 74 75 147 . 81 . 861 Absorbed by Shields . | . . . . . . . . . Core Remaining (%) 82 | 100 . 70 81 73 . 88 . . Volleys Fired 87 | . . 30 9 24 . 5 . 19 Largest 4 | . . 1 2 4 . 4 . 2 Hottest 276 | . . 20 90 216 . 276 . 56 Shots Fired 187 | . . 30 15 88 . 16 . 38 Gun 171 | . . 30 15 88 . . . 38 Cannon 16 | . . . . . . 16 . . Launcher . | . . . . . . . . . Special . | . . . . . . . . . Kinetic 68 | . . 30 . . . . . 38 Thermal 26 | . . . . 26 . . . . Explosive . | . . . . . . . . . Electromagnetic 93 | . . . 15 62 . 16 . . Robot Hit Streak 18 | . . 12 8 18 . 7 . 4 Robot Miss Streak 4 | . . 2 3 4 . 2 . 2 Penetration Max 1 | . . . . . . . . 1 Secondary Targets 6 | . . . . 4 . . . 2 Max Gunslinging Chain 1 | . . . . 1 . . . 1 Shots Hit Robots 144 | . . 22 8 65 . 20 . 29 Core Hits 89 | . . 7 9 43 . 13 . 17 Critical Kills . | . . . . . . . . . Critical Parts Destroyed 1 | . . . . . . . . 1 Critical Strikes 1 | . . . . . . . . 1 Destroy 1 | . . . . . . . . 1 Melee Attacks 42 | . . . . . . 21 . 21 Impact . | . . . . . . . . . Slashing 42 | . . . . . . 21 . 21 Piercing . | . . . . . . . . . Sneak Attacks . | . . . . . . . . . Combat Hostiles . | . . . . . . . . . Follow-up Attacks 4 | . . . . . . 2 . 2 Damage Inflicted 3323 | . . 186 144 1091 . 915 . 987 Guns 1865 | . . 186 119 1042 . . . 518 Cannons 249 | . . . . . . 249 . . Explosions 261 | . . . . 32 . 229 . . Melee 873 | . . . . . . 437 . 436 Ramming 75 | . . . 25 17 . . . 33 Kinetic 704 | . . 186 . . . . . 518 Thermal 323 | . . . . 323 . . . . Explosive 229 | . . . . . . 229 . . Electromagnetic 1119 | . . . 119 751 . 249 . . Impact . | . . . . . . . . . Slashing 873 | . . . . . . 437 . 436 Piercing . | . . . . . . . . . Highest Corruption 7 | . 3 3 . 2 . 7 . 1 Average Corruption 4 | . 2 3 . 2 . 6 . 1 Corruption Purged . | . . . . . . . . . Corruption Blocked . | . . . . . . . . . Effects 14 | . . 3 . 3 . 8 . . Message Errors 1 | . . . . . . 1 . . Matter Fused 6 | . . 2 . 2 . 2 . . Heat Flow Errors 1 | . . . . . . 1 . . Energy Discharges 2 | . . . . 1 . 1 . . Parts Fused 1 | . . . . . . 1 . . Data Loss (minor) 2 | . . 1 . . . 1 . . Alerts 1 | . . . . . . 1 . . Overload Shots . | . . . . . . . . . Overflow Damage 107 | . . . . . . 46 . 61 Projectiles . | . . . . . . . . . Explosions 7 | . . . . . . 7 . . Melee 100 | . . . . . . 39 . 61 Knockbacks . | . . . . . . . . . Impact . | . . . . . . . . . Kinetic . | . . . . . . . . . Secondary . | . . . . . . . . . Self-Inflicted Damage 101 | . . . . 22 . 64 . 15 Shots 2 | . . . . 1 . 1 . . Rammed 22 | . . . 13 2 . . . 7 Targets Rammed 24 | . . . 15 2 . . . 7 Kicked . | . . . . . . . . . Crushed 2 | . . . 2 . . . . . Highest Temperature 650 | . . 9 74 650 . 365 . 346 Average Temperature 141 | . . 5 36 165 . 117 . 161 Received Heat Transfer 1146 | . . 126 6 216 . 486 . 312 Effects 8 | . . . . 6 . . . 2 Shutdowns 2 | . . . . 1 . . . 1 Energy Bleed 1 | . . . . 1 . . . . Matter Decay 1 | . . . . 1 . . . . Short Circuit 3 | . . . . 2 . . . 1 Damage (core) 1 | . . . . 1 . . . . Siege Activations . | . . . . . . . . . Martial Activations . | . . . . . . . . . Shielding Activations . | . . . . . . . . . Robots Disrupted . | . . . . . . . . . Combat Hostiles . | . . . . . . . . . Robots Corrupted . | . . . . . . . . . Combat Hostiles . | . . . . . . . . . Parts Fried 7 | . . . 1 3 . 3 . . Impact Corruptions . | . . . . . . . . . Robots Melted . | . . . . . . . . . Combat Hostiles . | . . . . . . . . . Parts Melted 1 | . . . . 1 . . . . Heat Transferred 679 | . . . . 679 . . . . Parts Sabotaged . | . . . . . . . . . Parts Stolen . | . . . . . . . . . Parts Stripped . | . . . . . . . . . Power Chain Reactions 1 | . . . . 1 . . . . Alert | -11 -10 -10 -9 -8 -7 -7 -6 -6 ------- Run | Yrd Mat Min Mat Mat Fac DSF Fac Gar Maximum Alert Level 2 | . . . . . . 1 . 2 Low Security (%) 85 | 100 100 100 100 100 100 76 100 64 Level 1 11 | . . . . . . 23 . 25 Level 2 3 | . . . . . . . . 10 Level 3 . | . . . . . . . . . Level 4 . | . . . . . . . . . Level 5 . | . . . . . . . . . High Security . | . . . . . . . . . Max Security . | . . . . . . . . . Sterilizations 1 | . . . . . . 1 . . Peak Influence 525 | . . 30 115 187 63 261 140 525 Initial 136 | . . . . 44 63 47 136 98 Average 122 | . . 7 73 92 63 138 133 210 Influence Increases 1582 | . . 50 185 477 5 264 14 587 Destroy 0b10 Robot/C 1000 | . . 40 120 340 . 200 . 300 Destroy 0b10 Robot/NC 20 | . . . . 10 . 5 . 5 Destroy Leader 162 | . . 10 20 92 . 30 . 10 Allied During Kill 11 | . . . . . . . . 11 Successful Hack 35 | . . . . . 5 . 14 16 Disable Machine 45 | . . . 30 15 . . . . Anti-Garrison Action 100 | . . . . . . . . 100 Destroy Structure 29 | . . . . 5 . 14 . 10 Partial Spotted 15 | . . . . . . . . 15 Lose Combat Pursuer 165 | . . . 15 15 . 15 . 120 Influence Decreases 1067 | . . 50 80 443 76 71 135 212 Entered New Map 325 | . . . . 61 76 21 125 42 Time Decay 462 | . . 40 70 342 . . 10 . Lost Part 200 | . . 10 10 40 . 50 . 90 Lost Ally 80 | . . . . . . . . 80 Squads Dispatched 2 | . . . . 1 . 1 . . Investigation . | . . . . . . . . . Extermination . | . . . . . . . . . Reinforcement 2 | . . . . 1 . 1 . . Assault . | . . . . . . . . . Garrison . | . . . . . . . . . Intercept . | . . . . . . . . . Searches Triggered . | . . . . . . . . . Construction Impeded . | . . . . . . . . . Haulers Reinforced . | . . . . . . . . . Active Scanning Responses . | . . . . . . . . . Cargo Convoy Interrupts . | . . . . . . . . . Stealth | -11 -10 -10 -9 -8 -7 -7 -6 -6 --------- Run | Yrd Mat Min Mat Mat Fac DSF Fac Gar Distress Signals 1 | . . . 1 . . . . . Communications Jammed . | . . . . . . . . . Distress Signals . | . . . . . . . . . Times Spotted 72 | . 1 4 10 18 . 14 . 25 Peak Tracking Total 8 | . 1 2 6 5 . 4 . 8 Tactical Retreats 6 | . . . 1 1 . 1 . 3 Traps | -11 -10 -10 -9 -8 -7 -7 -6 -6 ------- Run | Yrd Mat Min Mat Mat Fac DSF Fac Gar Traps Triggered 7 | . 2 . . . . 3 . 2 Indirectly . | . . . . . . . . . Trap Hack Attempts . | . . . . . . . . . Triggered . | . . . . . . . . . Disarmed . | . . . . . . . . . Reprogrammed . | . . . . . . . . . Reused . | . . . . . . . . . Traps Extracted . | . . . . . . . . . Installed 1 | . . . . . . 1 . . Triggered . | . . . . . . . . . Machines | -11 -10 -10 -9 -8 -7 -7 -6 -6 ---------- Run | Yrd Mat Min Mat Mat Fac DSF Fac Gar Machines Disabled 4 | . . . 2 1 . . . 1 Max in Single Turn 1 | . . . 1 1 . . . 1 Garrison Relay 1 | . . . . . . . . 1 Machines Repaired . | . . . . . . . . . Machines Dismantled . | . . . . . . . . . Machines Sabotaged . | . . . . . . . . . Overloaded Fab Kills . | . . . . . . . . . Hacking | -11 -10 -10 -9 -8 -7 -7 -6 -6 --------- Run | Yrd Mat Min Mat Mat Fac DSF Fac Gar Machines Accessed 3 | . . . . . 1 . 1 1 Terminals 2 | . . . . . 1 . . 1 Fabricators . | . . . . . . . . . Repair Stations . | . . . . . . . . . Recycling Units . | . . . . . . . . . Scanalyzers . | . . . . . . . . . Garrison Access 1 | . . . . . . . 1 . Total Hacks 9 | . . . . . 4 . 3 2 Successful 3 | . . . . . 1 . 1 1 Failed 6 | . . . . . 3 . 2 1 Catastrophic 1 | . . . . . . . . 1 Database Lockouts . | . . . . . . . . . Manual . | . . . . . . . . . Terminals 6 | . . . . . 4 . . 2 Fabricators . | . . . . . . . . . Repair Stations . | . . . . . . . . . Recycling Units . | . . . . . . . . . Scanalyzers . | . . . . . . . . . Garrison Access 3 | . . . . . . . 3 . Terminal Hacks 2 | . . . . . 1 . . 1 Open DSF 1 | . . . . . 1 . . . Security Stations 1 | . . . . . . . . 1 Fabricator Hacks . | . . . . . . . . . Repair Station Hacks . | . . . . . . . . . Recycling Unit Hacks . | . . . . . . . . . Scanalyzer . | . . . . . . . . . Garrison Access Hacks 1 | . . . . . . . 1 . Unlock Access 1 | . . . . . . . 1 . Unauthorized Hacks . | . . . . . . . . . Terminals . | . . . . . . . . . Fabricators . | . . . . . . . . . Repair Stations . | . . . . . . . . . Recycling Units . | . . . . . . . . . Scanalyzers . | . . . . . . . . . Garrison Access . | . . . . . . . . . Data Cores Recovered . | . . . . . . . . . Used . | . . . . . . . . . Hacking Detections 3 | . . . . . 1 . 1 1 Full Trace Events 1 | . . . . . . . . 1 Feedback Events . | . . . . . . . . . Feedback Blocked . | . . . . . . . . . Robot Schematics Acquired . | . . . . . . . . . Robots Built . | . . . . . . . . . Authchips . | . . . . . . . . . Time . | . . . . . . . . . Total Robot Build Rating . | . . . . . . . . . Part Schematics Acquired . | . . . . . . . . . Parts Built . | . . . . . . . . . Authchips . | . . . . . . . . . Time . | . . . . . . . . . Total Part Build Rating . | . . . . . . . . . Part Studies Acquired . | . . . . . . . . . Parts Repaired . | . . . . . . . . . Time . | . . . . . . . . . Parts Recycled . | . . . . . . . . . Recycled Matter . | . . . . . . . . . Retrieved Matter . | . . . . . . . . . Retrieved Components . | . . . . . . . . . Parts Scanalyzed . | . . . . . . . . . Part Schematics Acquired . | . . . . . . . . . Parts Damaged . | . . . . . . . . . Bothacking | -11 -10 -10 -9 -8 -7 -7 -6 -6 ------------ Run | Yrd Mat Min Mat Mat Fac DSF Fac Gar Used RIF Installer . | . . . . . . . . . Robots Hacked . | . . . . . . . . . Non-combat . | . . . . . . . . . Combat . | . . . . . . . . . Robot Hacks Applied . | . . . . . . . . . Relay Couplers Released 5 | . . . . . . . . 5 Machine Destruction 5 | . . . . . . . . 5 Fabnet Peak Effective % . | . . . . . . . . . Robots Rewired 4 | . . . . . . . . 4 Allies Hacked 1 | . . . . . . . . 1 Hacks Repelled . | . . . . . . . . . Allies | -11 -10 -10 -9 -8 -7 -7 -6 -6 -------- Run | Yrd Mat Min Mat Mat Fac DSF Fac Gar Total Allies 4 | . . . . . . . . 4 Largest Group 3 | . . . . . . . . 3 Highest-Rated Group 41 | . . . . . . . . 41 Highest-Rated Ally 41 | . . . . . . . . 41 Initial Warlord ECA Mod 9 | . . . . . . . 9 9 Total Orders . | . . . . . . . . . Ally Attacks 25 | . . . . . . . . 25 Total Damage 819 | . . . . . . . . 819 Kills 3 | . . . . . . . . 3 Allies Corrupted . | . . . . . . . . . Allies Melted . | . . . . . . . . . Intel | -11 -10 -10 -9 -8 -7 -7 -6 -6 ------- Run | Yrd Mat Min Mat Mat Fac DSF Fac Gar Active Infowar (turns) 495 | . . . . 495 . . . . Sensors 495 | . . . . 495 . . . . Robot Analysis Total . | . . . . . . . . . Derelict Logs Recovered 1 | . . 1 . . . . . . Drone Launches . | . . . . . . . . . Drone Recoveries . | . . . . . . . . . Exploration | -11 -10 -10 -9 -8 -7 -7 -6 -6 ------------- Run | Yrd Mat Min Mat Mat Fac DSF Fac Gar Turns Passed 2419 | 56 63 181 190 773 16 383 29 728 Spaces Moved 1334 | 48 64 140 154 362 10 136 15 405 Core 112 | 1 . . 3 . . . . 108 Treads 865 | . . . 45 362 10 136 15 297 Legs . | . . . . . . . . . Wheels 255 | 47 64 140 4 . . . . . Hover . | . . . . . . . . . Flight 102 | . . . 102 . . . . . Fastest Speed 26 | 50 90 90 26 170 170 170 170 50 Average Speed 136 | 88 90 90 70 170 170 205 170 136 Slowest Speed 250 | 90 90 90 170 170 170 250 170 250 Overloaded Moves . | . . . . . . . . . Propulsion Burnouts . | . . . . . . . . . Robots Hopped 1 | . . . 1 . . . . . Potential Cave-ins . | . . . . . . . . . Cave-ins Triggered . | . . . . . . . . . Exploration Rate (%) 30 | 4 16 42 21 25 . 91 1 46 Regions Visited 8 Branch Regions 1 Pre-discovered Areas . | . . . . . . . . . Known Exits Taken 4 | . . . 1 1 1 . 1 . Unknown Exits Taken 3 | 1 1 1 . . . . . . Scrap Searched 1 | . . 1 . . . . . . Spaces Dug . | . . . . . . . . . Terrain Destroyed 19 | . . . . 5 . 14 . . Melee . | . . . . . . . . . Projectile . | . . . . . . . . . AOE 19 | . . . . 5 . 14 . . Terrain Rammed . | . . . . . . . . . Walls Destroyed . | . . . . . . . . . Machines Disabled . | . . . . . . . . . Actions | -11 -10 -10 -9 -8 -7 -7 -6 -6 --------- Run | Yrd Mat Min Mat Mat Fac DSF Fac Gar Total 1712 | 59 69 170 208 460 9 208 19 510 Wait 47 | . . . 5 32 . 8 . 2 Move 1322 | 47 63 139 151 361 9 135 14 403 Hop 1 | . . . 1 . . . . . Pick Up 39 | 1 6 . 5 16 . 3 . 8 Fast Attach 46 | 7 . 1 9 11 . 8 1 9 Attach 23 | . . . 6 2 . 7 2 6 Detach 15 | 2 . . 3 1 . 6 1 2 Swap 6 | . . . . 3 . 2 . 1 Drop 42 | 2 . . 4 8 . 18 1 9 Fire 87 | . . 30 9 24 . 5 . 19 Melee 30 | . . . . . . 15 . 15 Ram 7 | . . . . . . . . 7 Kick . | . . . . . . . . . Crush 17 | . . . 15 2 . . . . Escape Stasis . | . . . . . . . . . Rewire 29 | . . . . . . . . 29 Trap 1 | . . . . . . 1 . . Miscellaneous . | . . . . . . . . . Route ------- -11/Scrapyard -10/Materials -10/Mines -9/Materials (discovered 2 exits: *Mat x2) -8/Materials -7/Factory -7/DSF -6/Factory -6/Garrison (discovered 2 exits: [*Fac x2]) History --------- Turn | Location | Event 8 | -11/Scrapyard | Discovered new exit (range 16) 57 | -11/Scrapyard | Entered Materials 113 | -10/Materials | Discovered new exit (range 8) 120 | -10/Materials | Entered Mines 196 | -10/Mines | Learned 2 Materials zone layouts 290 | -10/Mines | Discovered new exit (range 10) 301 | -10/Mines | Entered Materials 301 | -9/Materials | Evolved 2 slots: Propulsion x2 302 | -9/Materials | Identified exit to Materials 365 | -9/Materials | Released all parts (8) 481 | -9/Materials | Discovered exit to Materials (range 6) 491 | -9/Materials | Entered another Materials area 491 | -8/Materials | Evolved 2 slots: Weapon x2 872 | -8/Materials | Build established: Tank 1081 | -8/Materials | Discovered new exit (range 10) 1117 | -8/Materials | Lost 4 parts (1n2u1w) 1120 | -8/Materials | Identified exit to Factory 1264 | -8/Materials | Entered Factory 1264 | -7/Factory | Evolved 2 slots: Power x1, Utility x1 1280 | -7/Factory | Identified exit to DSF 1280 | -7/Factory | Entered DSF 1342 | -7/DSF | Additional patrols routed to DSF 1603 | -7/DSF | Sterilization system engaged 1623 | -7/DSF | Ambient heat levels rising (+10) 1637 | -7/DSF | Discovered new exit (range 14) 1638 | -7/DSF | Ambient heat levels rising (+10) 1653 | -7/DSF | Ambient heat levels rising (+10) 1663 | -7/DSF | Entered Factory 1663 | -6/Factory | Evolved 2 slots: Weapon x2 1690 | -6/Factory | Identified exit to Garrison 1692 | -6/Factory | Entered Garrison 1706 | -6/Garrison | Triggered checkpoint 1752 | -6/Garrison | Build established: Scavenger-Mutant 1795 | -6/Garrison | Discovered new exit (range 5) 1899 | -6/Garrison | Lost 3 allies 1949 | -6/Garrison | Lost 3 parts (1n1u1w) 2079 | -6/Garrison | Learned Factory security intel 2196 | -6/Garrison | Garrison Relay disabled 2350 | -6/Garrison | Released all parts (9) 2369 | -6/Garrison | Lost 3 parts (1n2w) 2384 | -6/Garrison | Core integrity fell below 50% 2392 | -6/Garrison | Discovered new exit (range 10) 2397 | -6/Garrison | Attempted to access garrison exit controls, blocked by remote lockdown 2404 | -6/Garrison | Core integrity fell below 20% 2420 | -6/Garrison | Destroyed by S-27 Virus with Autogun Last Messages --------------- 02353_ Slug penetrates Wall. 02366_ Acquired Authchip [R/Combat]. 02372_ Authchip [R/Combat] destroyed. 02373_ Slammed into S-27 Virus. 02373_ Destabilizing: Core damaged (-34). 02374_ Slammed into S-27 Virus. 02392_ EXIT=FOUND 02397_ Attempting to access garrison exit controls... 02397_ Remote lockdown engaged. 02400_ Slammed into S-27 Virus. 02402_ Destabilizing: System corrupted (+1). 02403_ Slammed into S-27 Virus. 02403_ Destabilizing: Core damaged (-34). 02410_ Authchip [R/Combat] destroyed. 02414_ Discarded Authchip [R/Combat]. 02414_ Relay Coupler [Swarmer] fries itself. 02415_ Relay Coupler [Grunt] fries itself. 02416_ Relay Coupler [Brawler] fries itself. 02418_ Relay Coupler [Hunter] fries itself. 02419_ Slammed into S-27 Virus. Map ----- +----------------------------------------------------+ | ??????????#"!"%"" " ""#????#" ^^ | | ??????????#"""""""" "#????#"T"########## | | ??????????##############????#####???????## | | ????????????????????????????????????????# | | ????????????????????????????????????????# | | ????????????????????????????????????????# | | ????????????????????????????????????????# | | ????????????????????????????????????????## | | ?????????????????????????????????????????? | | ?????????????????????????????????????????? | | ?????????????????????????????????????????? | | ?????????????????????????????????????????? | | ?????????????????????????????????????????? | | ?????????????????????????????????????????? | | ?????????????????????????????????????????? | | ?????????????????????????????????????????? | | ?????????????????????????????????????????? | | ?????????????????????????????????????????? | | ?????????????????????????????????????????? | | ????????????????####?##################### | | ??????????????### #?# | | ??????????????#"# #?# | | ??????????????#" #?# | | ??????????????#" #?# ######### ###### | | ??????????????#" s#?# #????#### ###### | | ??????????????#"#@s#?# #????#"" ""# | | ??????????????### #?# #????#" !"# | | ????????????????# #?# #????#" !"# | | ????????????????# #?# #????#" !"# | | ????????????????# s#?# #????#"! !"# | | ????????????????" #?# #????#"! !"# | | ????????????????" #?# #????#"! !"# | | ????????????????" #?# #????#"" ""# | | ????????????????# #?# #????#"""!!!!"""# | | ????????????????# #?# #????#""""""""""# | | ????????????????# ### #????############ | | ????????????????# #???????????????? | | ????????????????# #???????????????? | | ????????????????###### #???????????????? | | ?????????????????????# #???????????????? | | ?????????????????????# #???????????????? | | ??????????############ #???????????????? | | ??????????# #???????????????? | | ??????????# < #???????????????? | | ??????????# #???????????????? | | ??????????################???????????????? | | ?????????????????????????????????????????? | | ?????????????????????????????????????????? | | ?????????????????????????????????????????? | | ?????????????????????????????????????????? | +----------------------------------------------------+ Best States ------------- Heat Dissipation 50 Energy Generation 25 Energy Capacity 460 Matter Stores 300 Matter Capacity 300 Sight Range 16 Robot Scan Range 15 Terrain Scan Density 10 Armor Coverage 600 Evasion (%) 64 Targeting Accuracy 5 Recoil Reduction 4 Authchip Count 2 Item Schematics ----------------- None Robot Schematics ------------------ None Fabricated ------------ Nothing Repaired ---------- Nothing Studied --------- None Alien Tech Used ----------------- None Achievements -------------- I Laugh At Your Crits Well Done Challenges ------------ None Game ------ Seed CloakDamperShell Manual? 0 Play Time 00:21:28 Cumulative 46.5 hours Start 2025.11.17 @ 03:13:22 End 2025.11.17 @ 03:33:21 Sessions 1 Manual Loads 0 Difficulty Rogue Special Mode None Game No. 181 Rogue 181 Adventurer 0 Explorer 0 Win Type - Total 0 Types 0/0/0/0/0/0/0/0/0/0 Lore% 12 Gallery% 34 Achievement% 24 Wizard Run 0 Options --------- Layout 1 ASCII 0 Keyboard 1 Movement Vi Keybinds 0 Fullscreen 1 Font 16/SmallcapsGlow Map View 55x38 Zoom Use 0% Tactical HUD 1 Map Filters NONE Filters NONE Steam 1 RUN: 8cd9df38-a8e6-4433-9576-8fb331d9b62a